fUSD/lending_fUSD_20240331
["ID","MTS","AMOUNT","RATE_DAILY","PERIOD"]
[321115719,1711900329648,-500.0,0.00056438,120]
[321115720,1711900329657,-540.4,0.00056438,120]
[321115721,1711900329667,-500.0,0.00056438,120]
[321115722,1711900329676,-500.0,0.00056438,120]
[321115723,1711900329687,-500.0,0.00056438,120]
[321115724,1711900329696,-500.0,0.00056438,120]
[321115725,1711900329705,-500.0,0.00056438,120]
[321115726,1711900329714,-500.0,0.00056438,120]
[321115727,1711900329724,-500.0,0.00056438,120]
[321115728,1711900329733,-500.0,0.00056438,120]
[321115729,1711900329743,-500.0,0.00056438,120]
[321115730,1711900329752,-1476.31,0.00056438,120]
[321115731,1711900329761,-500.0,0.00056438,120]
[321115732,1711900329770,-500.0,0.00056438,120]
[321115733,1711900329780,-500.0,0.00056438,120]
[321115734,1711900329789,-500.0,0.00056438,120]
[321115735,1711900329799,-500.0,0.00056438,120]
[321115736,1711900329809,-500.0,0.00056438,120]
[321115737,1711900329818,-536.73,0.00056438,120]
[321115738,1711900329828,-794.23,0.00056438,120]
[321115739,1711900329838,-500.0,0.00056438,120]
[321115740,1711900329847,-500.0,0.00056438,120]
[321115741,1711900329857,-500.0,0.00056438,120]
[321115742,1711900329867,-500.0,0.00056438,60]
[321115743,1711900329876,-500.0,0.00056438,120]
[321115744,1711900329885,-500.0,0.00056438,120]
[321115745,1711900329895,-500.0,0.00056438,120]
[321115746,1711900329904,-500.0,0.00056438,120]
[321115747,1711900329913,-500.0,0.00056438,120]
[321115748,1711900329922,-726.96,0.00056438,120]
[321115749,1711900329932,-500.0,0.00056438,50]
[321115750,1711900329941,-500.0,0.00056438,120]
[321115751,1711900329950,-151.0,0.00056438,120]
[321115752,1711900329959,-500.0,0.00056438,120]
[321115753,1711900329969,-500.0,0.00056438,120]
[321115754,1711900329978,-753.06,0.00056438,120]
[321115755,1711900329988,-500.0,0.00056438,120]
[321115756,1711900329997,-500.0,0.00056438,120]
[321115757,1711900330006,-741.95,0.00056438,120]
[321115758,1711900330015,-151.0,0.00056438,120]
[321115759,1711900330025,-500.0,0.00056438,120]
[321115760,1711900330034,-500.0,0.00056438,120]
[321115761,1711900330043,-500.0,0.00056438,120]
[321115762,1711900330053,-526.74799795,0.00056438,120]
[321115763,1711900330063,-500.0,0.00056438,120]
[321115764,1711900330073,-500.0,0.00056438,120]
[321115765,1711900330083,-457.8243212,0.00056438,120]
[321115766,1711900330092,-500.0,0.00056438,120]
[321115767,1711900330102,-500.0,0.00056438,120]
[321115768,1711900330111,-151.0,0.00056438,120]
[321115769,1711900330122,-500.0,0.00056438,120]
[321115770,1711900330131,-500.0,0.00056438,120]
[321115771,1711900330141,-500.0,0.00056438,120]
[321115772,1711900330150,-500.0,0.00056438,120]
[321115773,1711900330159,-500.0,0.00056438,120]
[321115774,1711900330169,-500.0,0.00056438,120]
[321115775,1711900330179,-796.42,0.00056438,120]
[321115776,1711900330189,-887.89,0.00056438,120]
[321115777,1711900330199,-500.0,0.00056438,120]
[321115778,1711900330209,-556.88,0.00056438,120]
[321115779,1711900330219,-646.48,0.00056438,120]
[321115780,1711900330229,-500.0,0.00056438,120]
[321115781,1711900330238,-500.0,0.00056438,120]
[321115782,1711900330248,-500.0,0.00056438,120]
[321115783,1711900330257,-500.0,0.00056438,120]
[321115784,1711900330269,-1000.0,0.00056438,120]
[321115785,1711900330282,-510.99,0.00056438,120]
[321115786,1711900330292,-500.0,0.00056438,120]
[321115787,1711900330301,-500.0,0.00056438,120]
[321115788,1711900330311,-849.94,0.00056438,120]
[321115789,1711900330322,-500.0,0.00056438,120]
[321115790,1711900330331,-500.0,0.00056438,120]
[321115791,1711900330341,-500.0,0.00056438,120]
[321115792,1711900330353,-500.0,0.00056438,120]
[321115793,1711900330362,-500.0,0.00056438,120]
[321115794,1711900330372,-799.12,0.00056438,120]
[321115795,1711900330382,-151.0,0.00056438,7]
[321115796,1711900330391,-500.0,0.00056438,120]
[321115797,1711900330401,-500.0,0.00056438,120]
[321115798,1711900330411,-500.0,0.00056438,120]
[321115799,1711900330421,-500.0,0.00056438,120]
[321115800,1711900330432,-500.0,0.00056438,120]
[321115801,1711900330441,-500.0,0.00056438,120]
[321115802,1711900330451,-500.0,0.00056438,120]
[321115803,1711900330461,-500.0,0.00056438,120]
[321115804,1711900330471,-498.970001,0.00056438,60]
[321115805,1711900330481,-552.0,0.00056438,120]
[321115806,1711900330491,-498.970001,0.00056438,60]
[321115807,1711900330501,-211.52,0.00056438,120]
[321115808,1711900330511,-500.0,0.00056438,120]
[321115809,1711900330520,-500.0,0.00056438,120]
[321115810,1711900330530,-500.0,0.00056438,120]
[321115811,1711900330539,-883.96,0.00056438,120]
[321115812,1711900330550,-500.0,0.00056438,120]
[321115813,1711900330559,-500.0,0.00056438,120]
[321115814,1711900330569,-815.7,0.00056438,120]
[321115815,1711900330579,-500.0,0.00056438,120]
[321115816,1711900330589,-804.07,0.00056438,120]
[321115817,1711900330598,-151.0,0.00056438,120]
[321115818,1711900330608,-151.0,0.00056438,120]
[321115819,1711900330617,-635.28,0.00056438,120]
[321115820,1711900330627,-500.0,0.00056438,120]
[321115821,1711900330637,-500.0,0.00056438,120]
[321115822,1711900330647,-500.0,0.00056438,120]
[321115823,1711900330656,-959.19,0.00056438,120]
[321115824,1711900330666,-683.74,0.00056438,120]
[321115825,1711900330676,-500.0,0.00056438,120]
[321115826,1711900330686,-151.0,0.00056438,120]
[321115827,1711900330695,-1061.5,0.00056438,120]
[321115828,1711900330704,-500.0,0.00056438,120]
[321115829,1711900330714,-736.85,0.00056438,120]
[321115830,1711900330723,-500.0,0.00056438,120]
[321115831,1711900330733,-500.0,0.00056438,120]
[321115832,1711900330742,-151.0,0.00056438,120]
[321115833,1711900330752,-500.0,0.00056438,120]
[321115834,1711900330761,-500.0,0.00056438,120]
[321115835,1711900330771,-500.0,0.00056438,120]
[321115836,1711900330780,-592.16,0.00056438,120]
[321115837,1711900330789,-151.0,0.00056438,120]
[321115838,1711900330799,-500.0,0.00056438,120]
[321115839,1711900330809,-500.0,0.00056438,120]
[321115840,1711900330818,-500.0,0.00056438,120]
[321115841,1711900330828,-571.87,0.00056438,120]
[321115842,1711900330837,-500.0,0.00056438,16]
[321115843,1711900330847,-781.99,0.00056438,120]
[321115844,1711900330857,-500.0,0.00056438,120]
[321115845,1711900330866,-828.46,0.00056438,120]
[321115846,1711900330876,-500.0,0.00056438,120]
[321115847,1711900330886,-500.0,0.00056438,120]
[321115848,1711900330895,-500.0,0.00056438,120]
[321115849,1711900330904,-500.0,0.00056438,120]
[321115850,1711900330913,-500.0,0.00056438,120]
[321115851,1711900330923,-500.0,0.00056438,120]
[321115852,1711900330932,-151.0,0.00056438,120]
[321115853,1711900330942,-519.19,0.00056438,120]
[321115854,1711900330951,-680.37,0.00056438,120]
[321115855,1711900330961,-151.0,0.00056438,120]
[321115856,1711900330971,-500.0,0.00056438,120]
[321115857,1711900330981,-174.32646,0.00056438,120]
[321115858,1711900330991,-735.71,0.00056438,120]
[321115859,1711900331001,-151.0,0.00056438,14]
[321115860,1711900331010,-500.0,0.00056438,120]
[321115861,1711900331020,-500.0,0.00056438,120]
[321115862,1711900331029,-151.0,0.00056438,120]
[321115863,1711900331039,-151.0,0.00056438,14]
[321115864,1711900331050,-500.0,0.00056438,120]
[321115865,1711900331059,-500.0,0.00056438,2]
[321115866,1711900331069,-648.33,0.00056438,120]
[321115867,1711900331079,-500.0,0.00056438,120]
[321115868,1711900331088,-151.0,0.00056438,120]
[321115869,1711900331098,-151.0,0.00056438,120]
[321115870,1711900331108,-500.0,0.00056438,120]
[321115871,1711900331118,-500.0,0.00056438,120]
[321115872,1711900331128,-310.66740497,0.00056438,120]
[321115873,1711900331138,-680.7,0.00056438,120]
[321115874,1711900331148,-500.0,0.00056438,120]
[321115875,1711900331157,-151.0,0.00056438,120]
[321115876,1711900331167,-151.0,0.00056438,120]
[321115877,1711900331177,-151.0,0.00056438,120]
[321115878,1711900331186,-500.0,0.00056438,120]
[321115879,1711900331196,-500.0,0.00056438,120]
[321115880,1711900331205,-1067.63,0.00056438,120]
[321115881,1711900331215,-617.46,0.00056438,120]
[321115882,1711900331225,-500.0,0.00056438,120]
[321115883,1711900331235,-151.0,0.00056438,120]
[321115884,1711900331244,-500.0,0.00056438,120]
[321115886,1711900331255,-500.0,0.00056438,120]
[321115887,1711900331264,-615.17,0.00056438,120]
[321115888,1711900331277,-500.0,0.00056438,120]
[321115889,1711900331288,-753.46,0.00056438,120]
[321115890,1711900331297,-671.0,0.00056438,120]
[321115891,1711900331307,-742.98,0.00056438,120]
[321115892,1711900331319,-500.0,0.00056438,120]
[321115893,1711900331329,-579.39,0.00056438,120]
[321115894,1711900331339,-500.0,0.00056438,120]
[321115895,1711900331349,-759.51,0.00056438,120]
[321115896,1711900331359,-500.0,0.00056438,120]
[321115897,1711900331369,-552.49143275,0.00056438,120]
[321115898,1711900331379,-500.0,0.00056438,120]
[321115899,1711900331389,-500.0,0.00056438,7]
[321115900,1711900331398,-500.0,0.00056438,120]
[321115901,1711900331407,-500.0,0.00056438,120]
[321115902,1711900331417,-500.0,0.00056438,120]
[321115903,1711900331427,-730.83,0.00056438,30]
[321115904,1711900331438,-562.36,0.00056438,120]
[321115905,1711900331447,-500.0,0.00056438,120]
[321115906,1711900331457,-500.0,0.00056438,120]
[321115907,1711900331466,-500.0,0.00056438,120]
[321115908,1711900331476,-500.0,0.00056438,120]
[321115909,1711900331485,-591.57,0.00056438,120]
[321115910,1711900331495,-500.0,0.00056438,120]
[321115911,1711900331504,-754.29,0.00056438,120]
[321115912,1711900331513,-500.0,0.00056438,120]
[321115913,1711900331523,-500.0,0.00056438,120]
[321115914,1711900331532,-544.56,0.00056438,120]
[321115915,1711900331542,-500.0,0.00056438,120]
[321115916,1711900331552,-563.24,0.00056438,120]
[321115917,1711900331562,-500.0,0.00056438,120]
[321115918,1711900331572,-500.0,0.00056438,120]
[321115919,1711900331582,-500.0,0.00056438,120]
[321115920,1711900331591,-500.0,0.00056438,120]
[321115921,1711900331600,-662.41,0.00056438,120]
[321115922,1711900331610,-995.44,0.00056438,120]
[321115923,1711900331620,-500.0,0.00056438,120]
[321115924,1711900331629,-500.0,0.00056438,120]
[321115925,1711900331638,-500.0,0.00056438,120]
[321115926,1711900331648,-500.0,0.00056438,120]
[321115927,1711900331658,-637.20156273,0.00056438,120]
[321115928,1711900331667,-353.36173725,0.00056438,120]
[321115929,1711900331678,-500.0,0.00056438,120]
[321115930,1711900331688,-629.64,0.00056438,120]
[321115931,1711900331698,-500.0,0.00056438,120]
[321115932,1711900331708,-531.25,0.00056438,120]
[321115933,1711900331717,-500.0,0.00056438,30]
[321115934,1711900331728,-543.59,0.00056438,120]
[321115935,1711900331738,-500.0,0.00056438,120]
[321115936,1711900331748,-500.0,0.00056438,120]
[321115937,1711900331759,-761.88,0.00056438,120]
[321115938,1711900331768,-500.0,0.00056438,120]
[321115939,1711900331779,-500.0,0.00056438,120]
[321115940,1711900331788,-711.25,0.00056438,120]
[321115941,1711900331799,-646.54,0.00056438,120]
[321115942,1711900331809,-1048.22,0.00056438,120]
[321115943,1711900331820,-500.0,0.00056438,120]
[321115944,1711900332105,-500.0,0.00056438,120]
[321115945,1711900332118,-500.0,0.00056438,120]
[321115946,1711900332128,-500.0,0.00056438,120]
[321115947,1711900332138,-500.0,0.00056438,120]
[321115948,1711900332148,-500.0,0.00056438,120]
[321115949,1711900332158,-500.0,0.00056438,120]
[321115950,1711900332168,-844.59,0.00056438,120]
[321115951,1711900332178,-519.79,0.00056438,120]
[321115952,1711900332188,-729.88,0.00056438,120]
[321115953,1711900332198,-539.07,0.00056438,120]
[321115954,1711900332207,-500.0,0.00056438,120]
[321115955,1711900332216,-915.41,0.00056438,120]
[321115956,1711900332226,-500.0,0.00056438,120]
[321115957,1711900332236,-500.0,0.00056438,120]
[321115958,1711900332246,-500.0,0.00056438,120]
[321115959,1711900332256,-771.12,0.00056438,120]
[321115960,1711900332267,-500.0,0.00056438,120]
[321115961,1711900332283,-500.0,0.00056438,120]
[321115962,1711900332293,-544.62,0.00056438,120]
[321115963,1711900332303,-618.81,0.00056438,120]
[321115964,1711900332313,-560.35,0.00056438,120]
[321115965,1711900332323,-500.0,0.00056438,120]
[321115966,1711900332333,-500.0,0.00056438,120]
[321115967,1711900332342,-500.0,0.00056438,120]
[321115968,1711900332351,-500.0,0.00056438,120]
[321115969,1711900332363,-500.0,0.00056438,120]
[321115970,1711900332373,-500.0,0.00056438,120]
[321115971,1711900332383,-500.0,0.00056438,120]
[321115972,1711900332393,-500.0,0.00056438,120]
[321115973,1711900332403,-500.0,0.00056438,120]
[321115974,1711900332412,-500.0,0.00056438,120]
[321115975,1711900332422,-860.0,0.00056438,120]
[321115976,1711900332432,-500.0,0.00056438,120]
[321115977,1711900332442,-500.0,0.00056438,120]
[321115978,1711900332452,-500.0,0.00056438,120]
[321115979,1711900332461,-500.0,0.00056438,120]
[321115980,1711900332472,-500.0,0.00056438,120]
[321115981,1711900332481,-881.22,0.00056438,120]
[321115982,1711900332491,-500.0,0.00056438,120]
[321115983,1711900332501,-500.0,0.00056438,120]
[321115984,1711900332510,-500.0,0.00056438,120]
[321115985,1711900332521,-644.32,0.00056438,120]
[321115986,1711900332531,-500.0,0.00056438,120]
[321115987,1711900332541,-500.0,0.00056438,120]
[321115988,1711900332551,-500.0,0.00056438,120]
[321115989,1711900332560,-500.0,0.00056438,120]
[321115990,1711900332570,-500.0,0.00056438,120]
[321115991,1711900332579,-500.0,0.00056438,120]
[321115992,1711900332588,-500.0,0.00056438,120]
[321115993,1711900332599,-1276.69,0.00056438,120]
[321115994,1711900332608,-500.0,0.00056438,120]
[321115995,1711900332618,-500.0,0.00056438,120]
[321115996,1711900332627,-514.56045046,0.00056438,120]
[321115997,1711900332637,-510.37498598,0.00056438,120]
[321115998,1711900332646,-500.0,0.00056438,120]
[321115999,1711900332656,-500.0,0.00056438,120]
[321116000,1711900332665,-500.0,0.00056438,120]
[321116001,1711900332674,-500.0,0.00056438,120]
[321116002,1711900332684,-500.0,0.00056438,120]
[321116003,1711900332694,-500.0,0.00056438,120]
[321116004,1711900332703,-500.0,0.00056438,120]
[321116005,1711900332713,-500.0,0.00056438,120]
[321116006,1711900332723,-500.0,0.00056438,120]
[321116007,1711900332733,-500.0,0.00056438,120]
[321116008,1711900332744,-517.06735117,0.00056438,120]
[321116009,1711900332754,-510.53607595,0.00056438,120]
[321116010,1711900332764,-500.0,0.00056438,120]
[321116011,1711900332773,-259.83,0.00056438,120]
[321116012,1711900332782,-500.0,0.00056438,120]
[321116013,1711900332792,-545.06,0.00056438,120]
[321116014,1711900332802,-554.91,0.00056438,120]
[321116015,1711900332811,-500.0,0.00056438,120]
[321116016,1711900332820,-500.0,0.00056438,120]
[321116017,1711900332830,-500.0,0.00056438,120]
[321116018,1711900332840,-688.34,0.00056438,120]
[321116019,1711900332850,-500.0,0.00056438,120]
[321116020,1711900332859,-1281.67,0.00056438,120]
[321116021,1711900332868,-500.0,0.00056438,120]
[321116022,1711900332878,-1988.35,0.00056438,120]
[321116023,1711900332887,-500.0,0.00056438,120]
[321116024,1711900332896,-500.0,0.00056438,120]
[321116025,1711900332906,-500.0,0.00056438,120]
[321116026,1711900332916,-500.0,0.00056438,120]
[321116027,1711900332926,-555.54,0.00056438,120]
[321116028,1711900332935,-500.0,0.00056438,120]
[321116029,1711900332944,-4923.54,0.00056438,120]
[321116030,1711900332954,-593.25,0.00056438,120]
[321116031,1711900332964,-295.33004178,0.00056438,120]
[321116032,1711900332973,-500.0,0.00056438,120]
[321116033,1711900332982,-1037.57,0.00056438,120]
[321116034,1711900332991,-500.0,0.00056438,120]
[321116035,1711900333002,-1959.37,0.00056438,120]
[321116036,1711900333012,-500.0,0.00056438,120]
[321116037,1711900333022,-500.0,0.00056438,120]
[321116038,1711900333032,-500.0,0.00056438,120]
[321116039,1711900333041,-507.1,0.00056438,120]
[321116040,1711900333051,-973.96,0.00056438,120]
[321116041,1711900333061,-17432.97,0.00056438,120]
[321116042,1711900333071,-500.0,0.00056438,120]
[321116043,1711900333081,-500.0,0.00056438,120]
[321116044,1711900333091,-575.53,0.00056438,120]
[321116045,1711900333100,-561.30662894,0.00056438,120]
[321116046,1711900333110,-836.36,0.00056438,120]
[321116047,1711900333120,-664.02,0.00056438,120]
[321116048,1711900333130,-4982.73,0.00056438,120]
[321116049,1711900333139,-1206.53,0.00056438,120]
[321116050,1711900333149,-500.0,0.00056438,120]
[321116051,1711900333158,-2111.34,0.00056438,120]
[321116052,1711900333168,-561.13,0.00056438,120]
[321116053,1711900333178,-535.14,0.00056438,120]
[321116054,1711900333187,-500.0,0.00056438,120]
[321116055,1711900333197,-500.0,0.00056438,120]
[321116056,1711900333206,-35203.05,0.00056438,120]
[321116057,1711900333216,-500.0,0.00056438,120]
[321116058,1711900333226,-500.0,0.00056438,120]
[321116059,1711900333235,-500.0,0.00056438,120]
[321116060,1711900333244,-500.0,0.00056438,120]
[321116061,1711900333255,-500.0,0.00056438,120]
[321116062,1711900333265,-20306.49,0.00056438,120]
[321116063,1711900333276,-500.0,0.00056438,120]
[321116064,1711900333287,-500.0,0.00056438,120]
[321116065,1711900333297,-2426.71,0.00056438,120]
[321116066,1711900333306,-500.0,0.00056438,120]
[321116067,1711900333316,-546.73856731,0.00056438,120]
[321116068,1711900333327,-3158.99,0.00056438,120]
[321116069,1711900333337,-500.0,0.00056438,120]
[321116070,1711900333346,-500.0,0.00056438,120]
[321116071,1711900333357,-6583.66,0.00056438,120]
[321116072,1711900333367,-550.6,0.00056438,120]
[321116073,1711900333377,-500.0,0.00056438,120]
[321116074,1711900333386,-500.0,0.00056438,120]
[321116075,1711900333395,-500.0,0.00056438,120]
[321116076,1711900333405,-500.0,0.00056438,120]
[321116077,1711900333414,-4743.47,0.00056438,120]
[321116078,1711900333422,-649.91,0.00056438,120]
[321116079,1711900333432,-500.0,0.00056438,120]
[321116080,1711900333441,-500.0,0.00056438,120]
[321116081,1711900333450,-500.0,0.00056438,120]
[321116082,1711900333459,-1008.94,0.00056438,120]
[321116083,1711900333469,-1501.81,0.00056438,120]
[321116084,1711900333478,-500.0,0.00056438,120]
[321116085,1711900333488,-273.17275257,0.00056438,120]
[321116086,1711900333497,-500.0,0.00056438,120]
[321116087,1711900333505,-7272.15,0.00056438,120]
[321116088,1711900333514,-500.0,0.00056438,120]
[321116089,1711900333524,-500.0,0.00056438,120]
[321116090,1711900333533,-1951.74,0.00056438,120]
[321116091,1711900333543,-500.0,0.00056438,120]
[321116092,1711900333553,-1708.51,0.00056438,120]
[321116093,1711900333562,-500.0,0.00056438,120]
[321116094,1711900333571,-516.3,0.00056438,120]
[321116095,1711900333580,-2213.16,0.00056438,120]
[321116096,1711900333590,-500.0,0.00056438,120]
[321116097,1711900333599,-706.06,0.00056438,120]
[321116098,1711900333608,-500.0,0.00056438,120]
[321116099,1711900333618,-500.0,0.00056438,120]
[321116100,1711900333627,-500.0,0.00056438,120]
[321116101,1711900333638,-4238.83,0.00056438,120]
[321116102,1711900333647,-206.62120399,0.00056438,120]
[321116103,1711900333656,-1070.8,0.00056438,120]
[321116104,1711900333666,-1153.73,0.00056438,120]
[321116105,1711900333675,-500.0,0.00056438,120]
[321116106,1711900333685,-506.91,0.00056438,120]
[321116107,1711900333694,-500.0,0.00056438,120]
[321116108,1711900333704,-500.0,0.00056438,120]
[321116109,1711900333714,-11263.13,0.00056438,120]
[321116110,1711900333723,-500.0,0.00056438,120]
[321116111,1711900333733,-500.0,0.00056438,120]
[321116112,1711900333742,-500.0,0.00056438,120]
[321116113,1711900333752,-500.0,0.00056438,120]
[321116114,1711900333761,-500.0,0.00056438,120]
[321116115,1711900333771,-6135.58,0.00056438,120]
[321116116,1711900333780,-500.0,0.00056438,120]
[321116117,1711900333790,-1063.3,0.00056438,120]
[321116118,1711900333799,-500.0,0.00056438,120]
[321116119,1711900333809,-1083.6,0.00056438,120]
[321116120,1711900333819,-500.0,0.00056438,120]
[321116121,1711900333828,-1674.93,0.00056438,120]
[321116122,1711900333837,-500.0,0.00056438,120]
[321116123,1711900333847,-547.37,0.00056438,120]
[321116124,1711900333860,-1968.84,0.00056438,120]
[321116125,1711900333870,-3729.06,0.00056438,120]
[321116126,1711900333879,-500.0,0.00056438,120]
[321116127,1711900333889,-500.0,0.00056438,120]
[321116128,1711900333898,-4646.47,0.00056438,120]
[321116129,1711900333908,-2179.05,0.00056438,120]
[321116130,1711900333917,-16968.39,0.00056438,120]
[321116131,1711900333926,-500.0,0.00056438,120]
[321116132,1711900333935,-29017.57,0.00056438,120]
[321116133,1711900333946,-551.57,0.00056438,120]
[321116134,1711900333956,-224.84947932,0.00056438,120]
[321116135,1711900333965,-584.14,0.00056438,120]
[321116136,1711900333975,-500.0,0.00056438,120]
[321116137,1711900333984,-890.16,0.00056438,120]
[321116138,1711900333994,-3354.8,0.00056438,120]
[321116139,1711900334003,-500.0,0.00056438,120]
[321116140,1711900334013,-911.19,0.00056438,120]
[321116141,1711900334023,-500.0,0.00056438,120]
[321116142,1711900334033,-749.8,0.00056438,120]
[321116143,1711900334043,-770.28,0.00056438,120]
[321116144,1711900334054,-500.0,0.00056438,120]
[321116145,1711900334063,-1117.84,0.00056438,120]
[321116146,1711900334073,-500.0,0.00056438,120]
[321116147,1711900334083,-1829.63,0.00056438,120]
[321116148,1711900334093,-3744.87,0.00056438,120]
[321116149,1711900334103,-500.0,0.00056438,120]
[321116150,1711900334112,-500.0,0.00056438,120]
[321116151,1711900334121,-500.0,0.00056438,120]
[321116152,1711900334131,-500.0,0.00056438,120]
[321116153,1711900334141,-542.88,0.00056438,120]
[321116154,1711900334151,-500.0,0.00056438,120]
[321116155,1711900334161,-1553.34,0.00056438,120]
[321116156,1711900334171,-1915.68,0.00056438,120]
[321116157,1711900334180,-500.0,0.00056438,120]
[321116158,1711900334190,-500.0,0.00056438,120]
[321116159,1711900334199,-500.0,0.00056438,120]
[321116160,1711900334208,-500.0,0.00056438,120]
[321116161,1711900334218,-500.0,0.00056438,120]
[321116162,1711900334227,-500.0,0.00056438,120]
[321116163,1711900334236,-500.0,0.00056438,120]
[321116164,1711900334246,-584.91,0.00056438,120]
[321116165,1711900334255,-1875.4,0.00056438,120]
[321116166,1711900334265,-500.0,0.00056438,120]
[321116167,1711900334277,-882.75,0.00056438,120]
[321116168,1711900334287,-500.0,0.00056438,120]
[321116169,1711900334297,-733.42,0.00056438,120]
[321116170,1711900334307,-500.0,0.00056438,120]
[321116171,1711900334317,-500.0,0.00056438,120]
[321116172,1711900334326,-784.97,0.00056438,120]
[321116173,1711900334335,-500.0,0.00056438,120]
[321116174,1711900334344,-2559.61,0.00056438,120]
[321116175,1711900334356,-500.0,0.00056438,120]
[321116176,1711900334366,-4029.59,0.00056438,120]
[321116177,1711900334375,-1741.29,0.00056438,120]
[321116178,1711900334385,-500.0,0.00056438,120]
[321116179,1711900334395,-8811.85,0.00056438,120]
[321116180,1711900334404,-612.97,0.00056438,120]
[321116181,1711900334413,-500.0,0.00056438,120]
[321116182,1711900334422,-7506.96,0.00056438,21]
[321116183,1711900334435,-2797.36,0.00056438,120]
[321116184,1711900334445,-500.0,0.00056438,120]
[321116185,1711900334454,-1677.22,0.00056438,120]
[321116186,1711900334463,-1296.66,0.00056438,120]
[321116187,1711900334472,-500.0,0.00056438,120]
[321116188,1711900334481,-966.37,0.00056438,120]
[321116189,1711900334490,-500.0,0.00056438,120]
[321116190,1711900334499,-500.0,0.00056438,120]
[321116191,1711900334508,-500.0,0.00056438,120]
[321116192,1711900334517,-500.0,0.00056438,120]
[321116193,1711900334526,-12461.24,0.00056438,120]
[321116194,1711900334535,-500.0,0.00056438,120]
[321116195,1711900334544,-3203.08,0.00056438,120]
[321116196,1711900334553,-500.0,0.00056438,120]
[321116197,1711900334563,-1043.52,0.00056438,120]
[321116198,1711900334572,-4560.05,0.00056438,120]
[321116199,1711900334581,-500.0,0.00056438,120]
[321116200,1711900334590,-500.0,0.00056438,120]
[321116201,1711900334599,-1828.48,0.00056438,120]
[321116202,1711900334608,-500.0,0.00056438,120]
[321116203,1711900334618,-1209.33,0.00056438,120]
[321116204,1711900334626,-868.97,0.00056438,120]
[321116205,1711900334635,-500.0,0.00056438,7]
[321116206,1711900334645,-500.0,0.00056438,120]
[321116207,1711900334655,-596.22,0.00056438,120]
[321116208,1711900334665,-500.0,0.00056438,120]
[321116209,1711900334674,-609.97,0.00056438,120]
[321116210,1711900334684,-8356.87,0.00056438,120]
[321116211,1711900334693,-500.0,0.00056438,120]
[321116212,1711900334707,-500.0,0.00056438,120]
[321116213,1711900334721,-1782.7,0.00056438,120]
[321116214,1711900334734,-500.0,0.00056438,120]
[321116215,1711900334745,-525.13,0.00056438,120]
[321116216,1711900334759,-1415.86,0.00056438,120]
[321116217,1711900334772,-1616.02,0.00056438,120]
[321116218,1711900334787,-2311.2,0.00056438,120]
[321116219,1711900334801,-12648.79,0.00056438,120]